fUSD/lending_fUSD_20240516
["ID","MTS","AMOUNT","RATE_DAILY","PERIOD"]
[327156094,1715862656058,81882.56294577,8.219e-05,2]
[327156095,1715862677185,150.0,8.219e-05,2]
[327156096,1715862677211,150.0,8.219e-05,2]
[327156097,1715862677233,150.0,8.219e-05,2]
[327156098,1715862677255,177.99,8.219e-05,2]
[327156099,1715862677278,30846.51411975,8.219e-05,2]
[327156100,1715862693892,-298.78407833,0.0001,2]
[327156102,1715862711592,298.78407833,0.0001,2]
[327156103,1715862727583,303.69912808,0.0001,2]
[327156105,1715862730678,2535.1552615,0.0002308,120]
[327156128,1715862835443,394.27115353,9e-05,2]
[327156129,1715863001209,327.04599991,0.0001,2]
[327156130,1715863027339,1422.35557252,0.00012,30]
[327156131,1715863058408,200.0,9.988e-05,2]
[327156132,1715863097183,206.4,9.879e-05,2]
[327156133,1715863163656,172.8,9.979e-05,2]
[327156135,1715863178018,1224.98,9.988e-05,2]
[327156138,1715863288873,167.04,8.219e-05,2]
[327156139,1715863304573,204.7855615,9.999e-05,2]
[327156142,1715863321992,150.0,9.999e-05,2]
[327156143,1715863322186,51.41000032,9.999e-05,2]
[327156144,1715863322207,98.58999968,9.999e-05,2]
[327156145,1715863437609,204.7855615,9.999e-05,2]
[327156146,1715863502168,150.0,9.999e-05,2]
[327156150,1715863682049,150.0,9.999e-05,2]
[327156158,1715863778742,167.04,8.219e-05,2]
[327156177,1715863831695,-349.36404407,0.0001,2]
[327156178,1715863831707,-8486.66839561,0.0001,2]
[327156179,1715863831832,-2168.0,0.0001,2]
[327156180,1715863831844,-538.32460932,0.0001,2]
[327156181,1715863831857,-211.472951,0.0001,2]
[327156182,1715863831866,-250.0,0.0001001,2]
[327156183,1715863831875,-861.76,0.00010013,2]
[327156184,1715863831886,-28894.65,0.00010075,2]
[327156185,1715863831895,-500.0,0.00010506,2]
[327156186,1715863831906,-600.0,0.00010506,2]
[327156187,1715863831916,-150.0,0.00010849,2]
[327156188,1715863831927,-1564.1179518,0.00010862,2]
[327156189,1715863831937,-659.5783,0.00010899,2]
[327156190,1715863831948,-1000.0,0.00010899,2]
[327156191,1715863831957,-13592.1586,0.000109,2]
[327156192,1715863831967,-499.99,0.000109,2]
[327156193,1715863831978,-188.59770756,0.00010921,2]
[327156194,1715863831988,-175.63691096,0.00010956,2]
[327156195,1715863831998,-2033.06,0.00010959,3]
[327156196,1715863832012,-3000.0,0.0001096,2]
[327156197,1715863832021,-2763.3652,0.00010967,2]
[327156198,1715863832030,-165.49149214,0.00010968,2]
[327156199,1715863832039,-197.56004175,0.00010968,2]
[327156200,1715863832048,-1847.95261604,0.00010968,2]
[327156201,1715863832056,-356.3900954,0.00010968,2]
[327156202,1715863832066,-200.0,0.00010983,2]
[327156203,1715863832076,-200.0,0.00010985,2]
[327156204,1715863832085,-1000.0,0.00010985,2]
[327156205,1715863832095,-500.0,0.00010985,2]
[327156206,1715863832104,-162.49,0.00010989,2]
[327156207,1715863832114,-162.49,0.0001099,2]
[327156208,1715863832123,-162.49,0.0001099,2]
[327156209,1715863832133,-1000.0,0.0001099,2]
[327156210,1715863832142,-500.0,0.0001099,2]
[327156211,1715863832151,-302.02478597,0.00010998,2]
[327156212,1715863832160,-254.07261996,0.00010998,2]
[327156213,1715863832171,-237.05268087,0.00010998,2]
[327156214,1715863832180,-426.71094811,0.00010998,2]
[327156215,1715863832190,-495.49162865,0.00010998,2]
[327156216,1715863832199,-266.15160659,0.00010998,2]
[327156217,1715863832208,-525.33227843,0.00010998,2]
[327156218,1715863832219,-265.91931471,0.00010998,2]
[327156219,1715863832229,-528.24751457,0.00010998,2]
[327156220,1715863832238,-577.86961775,0.00010998,2]
[327156221,1715863832247,-250.44520229,0.00010998,2]
[327156222,1715863832265,-163.14617584,0.00010998,2]
[327156223,1715863832274,-202.80291915,0.00010998,2]
[327156224,1715863832284,-500.0,0.00010998,2]
[327156227,1715863832294,-500.0,0.00010998,2]
[327156228,1715863832303,-500.0,0.00010998,2]
[327156230,1715863832312,-500.0,0.00010998,2]
[327156232,1715863832321,-500.0,0.00010998,2]
[327156234,1715863832331,-500.0,0.00010998,2]
[327156237,1715863832339,-500.0,0.00010998,2]
[327156239,1715863832348,-719.04,0.00010998,2]
[327156241,1715863832357,-500.0,0.00010998,2]
[327156243,1715863832366,-571.53,0.00010998,2]
[327156245,1715863832375,-500.0,0.00010998,2]
[327156247,1715863832385,-500.0,0.00010998,2]
[327156249,1715863832394,-500.0,0.00010998,2]
[327156250,1715863832405,-500.0,0.00010998,2]
[327156251,1715863832415,-500.0,0.00010998,2]
[327156252,1715863832424,-500.0,0.00010998,2]
[327156253,1715863832434,-500.0,0.00010998,2]
[327156254,1715863832448,-500.0,0.00010998,2]
[327156255,1715863832458,-1053.05,0.00010998,2]
[327156256,1715863832468,-500.0,0.00010998,2]
[327156257,1715863832477,-500.0,0.00010998,2]
[327156258,1715863832488,-500.0,0.00010998,2]
[327156259,1715863832497,-500.0,0.00010998,2]
[327156260,1715863832510,-500.0,0.00010998,2]
[327156261,1715863832519,-500.0,0.00010998,2]
[327156262,1715863832531,-513.04,0.00010998,2]
[327156263,1715863832539,-500.0,0.00010998,2]
[327156264,1715863832552,-500.0,0.00010998,2]
[327156265,1715863832561,-500.0,0.00010998,2]
[327156266,1715863832571,-500.0,0.00010998,2]
[327156267,1715863832580,-500.0,0.00010999,2]
[327156268,1715863832590,-500.0,0.00010999,2]
[327156269,1715863832600,-396.05,0.00010999,2]
[327156270,1715863832609,-500.0,0.00010999,2]
[327156271,1715863832619,-464.82884157,0.00010999,2]
[327156272,1715863832628,-500.0,0.00010999,2]
[327156273,1715863832640,-500.0,0.00010999,2]
[327156274,1715863832651,-500.0,0.00010999,2]
[327156275,1715863832660,-480.1,0.00010999,2]
[327156276,1715863832670,-500.0,0.00010999,2]
[327156277,1715863832679,-500.0,0.00010999,2]
[327156278,1715863832688,-346.69314244,0.00010999,2]
[327156279,1715863832697,-500.0,0.00010999,2]
[327156280,1715863832707,-20000.0,0.00010999,2]
[327156281,1715863832716,-20000.0,0.00010999,2]
[327156282,1715863832725,-20000.0,0.00010999,2]
[327156283,1715863832734,-500.0,0.00010999,2]
[327156284,1715863832743,-500.0,0.00010999,2]
[327156285,1715863832756,-500.0,0.00010999,2]
[327156286,1715863832766,-500.0,0.00010999,2]
[327156287,1715863832776,-500.0,0.00010999,2]
[327156288,1715863832786,-435.43,0.00010999,2]
[327156289,1715863832795,-500.0,0.00010999,2]
[327156290,1715863832804,-508.33,0.00010999,2]
[327156291,1715863832813,-500.0,0.00010999,2]
[327156292,1715863832823,-500.0,0.00010999,2]
[327156293,1715863832832,-384.42,0.00010999,2]
[327156294,1715863832842,-210.3825442,0.00010999,2]
[327156295,1715863832851,-500.0,0.00010999,2]
[327156296,1715863832860,-500.0,0.00010999,2]
[327156297,1715863832870,-1000.0,0.00010999,2]
[327156298,1715863832880,-500.0,0.00010999,2]
[327156299,1715863832890,-500.0,0.00010999,2]
[327156300,1715863832899,-330.79,0.00010999,2]
[327156301,1715863832909,-500.0,0.00010999,2]
[327156302,1715863832920,-500.0,0.00010999,2]
[327156303,1715863832929,-500.0,0.00010999,2]
[327156304,1715863832939,-500.0,0.00010999,2]
[327156305,1715863832949,-174.76,0.00010999,2]
[327156306,1715863832959,-500.0,0.00010999,2]
[327156307,1715863832970,-150.0,0.00010999,2]
[327156308,1715863832979,-501.23751725,0.00010999,2]
[327156309,1715863832989,-500.0,0.00010999,2]
[327156310,1715863832999,-500.0,0.00010999,2]
[327156311,1715863833014,-500.0,0.00010999,2]
[327156312,1715863833024,-500.0,0.00010999,2]
[327156313,1715863833034,-500.0,0.00010999,2]
[327156314,1715863833043,-536.58,0.00010999,2]
[327156315,1715863833053,-500.0,0.00010999,2]
[327156316,1715863833063,-328.38,0.00010999,2]
[327156317,1715863833072,-204.84,0.00010999,2]
[327156318,1715863833081,-284.0751755,0.00010999,2]
[327156319,1715863833090,-191.85,0.00010999,2]
[327156320,1715863833100,-500.0,0.00010999,2]
[327156321,1715863833109,-500.0,0.00010999,2]
[327156322,1715863833119,-500.0,0.00010999,2]
[327156323,1715863833129,-500.0,0.00010999,2]
[327156324,1715863833138,-500.0,0.00010999,2]
[327156325,1715863833148,-598.15,0.00010999,2]
[327156326,1715863833158,-506.85,0.00010999,2]
[327156327,1715863833167,-504.63428149,0.00010999,2]
[327156328,1715863833177,-506.12129469,0.00010999,2]
[327156329,1715863833187,-500.0,0.00010999,2]
[327156330,1715863833196,-331.95,0.00010999,2]
[327156331,1715863833205,-538.41,0.00010999,2]
[327156332,1715863833215,-500.0,0.00010999,2]
[327156333,1715863833224,-500.0,0.00010999,2]
[327156334,1715863833234,-504.82,0.00010999,2]
[327156335,1715863833243,-500.0,0.00010999,2]
[327156336,1715863833259,-500.0,0.00010999,2]
[327156337,1715863833269,-500.0,0.00010999,2]
[327156338,1715863833278,-504.91926652,0.00010999,2]
[327156339,1715863833288,-500.0,0.00010999,2]
[327156340,1715863833298,-604.49,0.00010999,2]
[327156341,1715863833308,-500.0,0.00010999,2]
[327156342,1715863833319,-500.0,0.00010999,2]
[327156343,1715863833328,-500.0,0.00010999,2]
[327156344,1715863833339,-500.0,0.00010999,2]
[327156345,1715863833349,-507.53817414,0.00010999,2]
[327156346,1715863833359,-518.24,0.00010999,2]
[327156347,1715863833369,-500.0,0.00010999,2]
[327156348,1715863833379,-500.0,0.00010999,2]
[327156349,1715863833391,-580.21,0.00010999,2]
[327156350,1715863833402,-500.0,0.00010999,2]
[327156351,1715863833412,-500.0,0.00010999,2]
[327156352,1715863833422,-500.0,0.00010999,2]
[327156353,1715863833438,-500.0,0.00010999,2]
[327156354,1715863833451,-403.65899176,0.00010999,2]
[327156355,1715863833460,-500.0,0.00010999,2]
[327156356,1715863833470,-500.0,0.00010999,2]
[327156357,1715863833480,-206.92509739,0.00010999,2]
[327156358,1715863833491,-500.0,0.00010999,2]
[327156359,1715863833502,-618.42,0.00010999,2]
[327156360,1715863833514,-500.0,0.00010999,2]
[327156361,1715863833524,-500.0,0.00010999,2]
[327156362,1715863833536,-500.0,0.00010999,2]
[327156363,1715863833547,-500.0,0.00010999,2]
[327156364,1715863833556,-500.0,0.00010999,2]
[327156365,1715863833566,-500.0,0.00010999,2]
[327156366,1715863833575,-500.0,0.00010999,2]
[327156367,1715863833584,-500.0,0.00010999,2]
[327156368,1715863833595,-573.27,0.00010999,2]
[327156369,1715863833604,-500.0,0.00010999,2]
[327156370,1715863833614,-500.0,0.00010999,2]
[327156371,1715863833624,-500.0,0.00010999,2]
[327156372,1715863833635,-500.0,0.00010999,2]
[327156373,1715863833646,-500.0,0.00010999,2]
[327156374,1715863833656,-500.0,0.00010999,2]
[327156375,1715863833666,-500.0,0.00010999,2]
[327156376,1715863833676,-335.35,0.00010999,2]
[327156377,1715863833686,-500.0,0.00010999,2]
[327156378,1715863833695,-500.0,0.00010999,2]
[327156379,1715863833704,-500.0,0.00010999,2]
[327156380,1715863833713,-500.0,0.00010999,2]
[327156381,1715863833723,-500.0,0.00010999,2]
[327156382,1715863833733,-501.03,0.00010999,2]
[327156383,1715863833743,-500.0,0.00010999,2]
[327156384,1715863833755,-500.0,0.00010999,2]
[327156385,1715863833764,-500.0,0.00010999,2]
[327156386,1715863833773,-500.0,0.00010999,2]
[327156387,1715863833783,-500.0,0.00010999,2]
[327156388,1715863833792,-500.0,0.00010999,2]
[327156389,1715863833801,-500.0,0.00010999,2]
[327156390,1715863833811,-293.11,0.00010999,2]
[327156391,1715863833821,-500.0,0.00010999,2]
[327156392,1715863833830,-500.0,0.00010999,2]
[327156393,1715863833840,-500.0,0.00010999,2]
[327156394,1715863833850,-500.0,0.00010999,2]
[327156395,1715863833860,-500.0,0.00010999,2]
[327156396,1715863833869,-500.0,0.00010999,2]
[327156397,1715863833879,-500.0,0.00010999,2]
[327156398,1715863833889,-500.0,0.00010999,2]
[327156399,1715863833901,-500.0,0.00010999,2]
[327156400,1715863833911,-593.9,0.00010999,2]
[327156401,1715863833922,-500.0,0.00010999,2]
[327156402,1715863833931,-207.65391609,0.00010999,2]
[327156403,1715863833942,-500.0,0.00010999,2]
[327156404,1715863833951,-500.0,0.00010999,2]
[327156405,1715863833962,-339.34,0.00010999,2]
[327156406,1715863833973,-500.0,0.00010999,2]
[327156407,1715863833984,-500.0,0.00010999,2]
[327156408,1715863833995,-500.0,0.00010999,2]
[327156409,1715863834008,-209.73462739,0.00010999,2]
[327156410,1715863834017,-761.26,0.00010999,2]
[327156411,1715863834026,-761.26,0.00010999,2]
[327156412,1715863834035,-761.26,0.00010999,2]
[327156413,1715863834044,-600.58,0.00010999,2]
[327156414,1715863834054,-500.0,0.00010999,2]
[327156415,1715863834063,-500.0,0.00010999,2]
[327156416,1715863834073,-500.0,0.00010999,2]
[327156417,1715863834085,-500.0,0.00010999,2]
[327156418,1715863834095,-500.0,0.00010999,2]
[327156419,1715863834107,-400.39,0.00010999,2]
[327156420,1715863834117,-500.0,0.00010999,2]
[327156421,1715863834127,-500.0,0.00010999,2]
[327156422,1715863834138,-500.0,0.00010999,2]
[327156423,1715863834147,-500.0,0.00010999,2]
[327156424,1715863834157,-524.45,0.00010999,2]
[327156425,1715863834168,-503.78,0.00010999,2]
[327156426,1715863834178,-500.0,0.00010999,2]
[327156427,1715863834187,-500.0,0.00010999,2]
[327156428,1715863834197,-500.0,0.00010999,2]
[327156429,1715863834208,-500.0,0.00010999,2]
[327156430,1715863834217,-500.0,0.00010999,2]
[327156431,1715863834227,-500.0,0.00010999,2]
[327156432,1715863834237,-568.58,0.00010999,2]
[327156433,1715863834247,-500.0,0.00010999,2]
[327156434,1715863834259,-887.19,0.00010999,2]
[327156435,1715863834270,-887.19,0.00010999,2]
[327156436,1715863834280,-887.19,0.00010999,2]
[327156437,1715863834290,-264.89,0.00010999,2]
[327156438,1715863834299,-322.38726263,0.00010999,2]
[327156439,1715863834309,-500.0,0.00010999,2]
[327156440,1715863834318,-594.36,0.00010999,2]
[327156441,1715863834328,-500.0,0.00010999,2]
[327156442,1715863834338,-500.0,0.00010999,2]
[327156443,1715863834347,-500.0,0.00010999,2]
[327156444,1715863834357,-500.0,0.00010999,2]
[327156445,1715863834367,-500.0,0.00010999,2]
[327156446,1715863834377,-466.4,0.00010999,2]
[327156447,1715863834387,-500.0,0.00010999,2]
[327156448,1715863834396,-500.0,0.00010999,2]
[327156449,1715863834407,-500.0,0.00010999,2]
[327156450,1715863834416,-984.45,0.00010999,2]
[327156451,1715863834425,-984.45,0.00010999,2]
[327156452,1715863834437,-984.45,0.00010999,2]
[327156453,1715863834448,-500.0,0.00010999,2]
[327156454,1715863834460,-500.0,0.00010999,2]
[327156455,1715863834469,-500.0,0.00010999,2]
[327156456,1715863834479,-500.0,0.00010999,2]
[327156457,1715863834491,-500.0,0.00010999,2]
[327156458,1715863834500,-500.0,0.00010999,2]
[327156459,1715863834510,-210.0,0.00010999,2]
[327156460,1715863834792,-500.0,0.00010999,2]
[327156461,1715863834802,-264.01,0.00010999,2]
[327156462,1715863834812,-500.0,0.00010999,2]
[327156463,1715863834822,-500.0,0.00010999,2]
[327156464,1715863834831,-500.0,0.00010999,2]
[327156465,1715863834841,-168.52588462,0.00010999,2]
[327156466,1715863834850,-500.0,0.00010999,2]
[327156467,1715863834859,-500.0,0.00010999,2]
[327156468,1715863834868,-500.0,0.00010999,2]
[327156469,1715863834878,-500.0,0.00010999,2]
[327156470,1715863834888,-500.0,0.00010999,2]
[327156471,1715863834898,-500.0,0.00010999,2]
[327156472,1715863834914,-500.0,0.00010999,2]
[327156473,1715863834925,-500.0,0.00010999,2]
[327156474,1715863834935,-500.0,0.00010999,2]
[327156475,1715863834944,-500.0,0.00010999,2]
[327156476,1715863834954,-385.37,0.00010999,2]
[327156477,1715863834964,-500.0,0.00010999,2]
[327156478,1715863834974,-500.0,0.00010999,2]
[327156479,1715863834983,-500.0,0.00010999,2]
[327156480,1715863834993,-500.0,0.00010999,2]
[327156481,1715863835007,-500.0,0.00010999,2]
[327156482,1715863835017,-500.0,0.00010999,2]
[327156483,1715863835031,-336.99336248,0.00010999,2]
[327156484,1715863835041,-500.0,0.00010999,2]
[327156485,1715863835051,-500.0,0.00010999,2]
[327156486,1715863835061,-500.0,0.00010999,2]
[327156487,1715863835072,-500.0,0.00010999,2]
[327156488,1715863835082,-667.04,0.00010999,2]
[327156489,1715863835091,-667.04,0.00010999,2]
[327156490,1715863835101,-667.04,0.00010999,2]
[327156491,1715863835111,-593.28,0.00010999,2]
[327156492,1715863835120,-500.0,0.00010999,2]
[327156493,1715863835129,-500.0,0.00010999,2]
[327156494,1715863835139,-500.0,0.00010999,2]
[327156495,1715863835149,-500.0,0.00010999,2]
[327156496,1715863835158,-523.55,0.00010999,2]
[327156497,1715863835168,-500.0,0.00010999,2]
[327156498,1715863835177,-500.0,0.00010999,2]
[327156499,1715863835187,-500.0,0.00010999,2]
[327156500,1715863835196,-500.0,0.00010999,2]
[327156501,1715863835206,-500.0,0.00010999,2]
[327156502,1715863835215,-500.0,0.00010999,2]
[327156503,1715863835224,-500.0,0.00010999,2]
[327156504,1715863835234,-500.0,0.00010999,2]
[327156505,1715863835243,-500.0,0.00010999,2]
[327156506,1715863835255,-500.0,0.00010999,2]
[327156507,1715863835264,-500.0,0.00010999,2]
[327156508,1715863835274,-500.0,0.00010999,2]
[327156509,1715863835283,-1133.95,0.00010999,2]
[327156510,1715863835293,-1133.95,0.00010999,2]
[327156511,1715863835303,-1133.95,0.00010999,2]
[327156512,1715863835313,-500.0,0.00010999,2]
[327156513,1715863835322,-500.0,0.00010999,2]
[327156514,1715863835331,-499.26106055,0.00010999,2]
[327156515,1715863835340,-500.0,0.00010999,2]
[327156516,1715863835350,-500.0,0.00010999,2]
[327156517,1715863835359,-500.0,0.00010999,2]
[327156518,1715863835370,-500.0,0.00010999,2]
[327156519,1715863835380,-500.0,0.00010999,2]
[327156520,1715863835389,-500.0,0.00010999,2]
[327156521,1715863835399,-500.0,0.00010999,2]
[327156522,1715863835409,-500.0,0.00010999,2]
[327156523,1715863835418,-500.0,0.00010999,2]
[327156524,1715863835428,-719.04,0.00010999,2]
[327156525,1715863835439,-404.15,0.00010999,2]
[327156526,1715863835450,-719.04,0.00010999,2]
[327156527,1715863835460,-500.0,0.00010999,2]
[327156528,1715863835470,-500.0,0.00010999,2]
[327156529,1715863835479,-500.0,0.00010999,2]
[327156530,1715863835491,-500.0,0.00010999,2]
[327156531,1715863835500,-1171.71,0.00010999,2]
[327156532,1715863835513,-1171.71,0.00010999,2]
[327156533,1715863835523,-1171.71,0.00010999,2]
[327156534,1715863835532,-500.0,0.00010999,2]
[327156535,1715863835543,-500.0,0.00010999,2]
[327156536,1715863835552,-500.0,0.00010999,2]
[327156537,1715863835562,-839.98,0.00010999,2]
[327156538,1715863835572,-839.98,0.00010999,2]
[327156539,1715863835583,-839.98,0.00010999,2]
[327156540,1715863835593,-500.0,0.00010999,2]
[327156541,1715863835603,-500.0,0.00010999,2]
[327156542,1715863835612,-500.0,0.00010999,2]
[327156543,1715863835623,-571.53,0.00010999,2]
[327156544,1715863835632,-500.0,0.00010999,2]
[327156545,1715863835642,-571.53,0.00010999,2]
[327156546,1715863835653,-500.0,0.00010999,2]
[327156547,1715863835663,-500.0,0.00010999,2]
[327156548,1715863835672,-500.0,0.00010999,2]
[327156549,1715863835682,-286.89,0.00010999,2]
[327156550,1715863835692,-500.0,0.00010999,2]
[327156551,1715863835702,-500.0,0.00010999,2]
[327156552,1715863835712,-500.0,0.00010999,2]
[327156553,1715863835722,-500.0,0.00010999,2]
[327156554,1715863835731,-468.54,0.00010999,2]
[327156555,1715863835740,-500.0,0.00010999,2]
[327156556,1715863835750,-500.0,0.00010999,2]
[327156557,1715863835760,-500.0,0.00010999,2]
[327156558,1715863835770,-500.0,0.00010999,2]
[327156559,1715863835779,-500.0,0.00010999,2]
[327156560,1715863835788,-500.0,0.00010999,2]
[327156561,1715863835798,-500.0,0.00010999,2]
[327156562,1715863835812,-500.0,0.00010999,2]
[327156563,1715863835822,-500.0,0.00010999,2]
[327156564,1715863835832,-500.0,0.00010999,2]
[327156565,1715863835842,-500.0,0.00010999,2]
[327156566,1715863835852,-500.0,0.00010999,2]
[327156567,1715863835862,-500.0,0.00010999,2]
[327156568,1715863835871,-500.0,0.00010999,2]
[327156569,1715863835881,-605.03,0.00010999,2]
[327156570,1715863835891,-1060.91,0.00010999,2]
[327156571,1715863835901,-1060.91,0.00010999,2]
[327156572,1715863835911,-1060.91,0.00010999,2]
[327156573,1715863835921,-500.0,0.00010999,2]
[327156574,1715863835932,-500.0,0.00010999,2]
[327156575,1715863835942,-500.0,0.00010999,2]
[327156576,1715863835952,-1053.05,0.00010999,2]
[327156577,1715863835962,-1053.05,0.00010999,2]
[327156578,1715863835972,-500.0,0.00010999,2]
[327156579,1715863835981,-500.0,0.00010999,2]
[327156580,1715863835992,-500.0,0.00010999,2]
[327156581,1715863836002,-500.0,0.00010999,2]
[327156582,1715863836012,-500.0,0.00010999,2]
[327156583,1715863836022,-500.0,0.00010999,2]
[327156584,1715863836032,-344.94,0.00010999,2]
[327156585,1715863836042,-500.0,0.00010999,2]
[327156586,1715863836052,-500.0,0.00010999,2]
[327156587,1715863836061,-500.0,0.00010999,2]
[327156588,1715863836072,-500.0,0.00010999,2]
[327156589,1715863836081,-500.0,0.00010999,2]
[327156590,1715863836091,-500.0,0.00010999,2]
[327156591,1715863836101,-395.3,0.00010999,2]
[327156592,1715863836111,-500.0,0.00010999,2]
[327156593,1715863836122,-500.0,0.00010999,2]
[327156594,1715863836131,-500.0,0.00010999,2]
[327156595,1715863836141,-500.0,0.00010999,2]
[327156596,1715863836151,-500.0,0.00010999,2]
[327156597,1715863836161,-500.0,0.00010999,2]
[327156598,1715863836171,-500.0,0.00010999,2]
[327156599,1715863836181,-500.0,0.00010999,2]
[327156600,1715863836191,-500.0,0.00010999,2]
[327156601,1715863836201,-500.0,0.00010999,2]
[327156602,1715863836210,-500.0,0.00010999,2]
[327156603,1715863836220,-500.0,0.00010999,2]
[327156604,1715863836229,-500.0,0.00010999,2]
[327156605,1715863836239,-500.0,0.00010999,2]
[327156606,1715863836249,-500.0,0.00010999,2]
[327156607,1715863836261,-500.0,0.00010999,2]
[327156608,1715863836271,-500.0,0.00010999,2]
[327156609,1715863836281,-500.0,0.00010999,2]
[327156610,1715863836291,-500.0,0.00010999,2]
[327156611,1715863836301,-500.0,0.00010999,2]
[327156612,1715863836311,-500.0,0.00010999,2]
[327156613,1715863836322,-278.72,0.00010999,2]
[327156614,1715863836331,-500.0,0.00010999,2]
[327156615,1715863836341,-232.54,0.00010999,2]
[327156616,1715863836351,-1092.19,0.00010999,2]
[327156617,1715863836361,-1092.19,0.00010999,2]
[327156618,1715863836371,-1092.19,0.00010999,2]
[327156619,1715863836380,-500.0,0.00010999,2]
[327156620,1715863836390,-500.0,0.00010999,2]
[327156621,1715863836400,-500.0,0.00010999,2]
[327156622,1715863836411,-500.0,0.00010999,2]
[327156623,1715863836421,-500.0,0.00010999,2]
[327156624,1715863836432,-500.0,0.00010999,2]
[327156625,1715863836447,-500.0,0.00010999,2]
[327156626,1715863836456,-500.0,0.00010999,2]
[327156627,1715863836466,-500.0,0.00010999,2]
[327156628,1715863836476,-500.0,0.00010999,2]
[327156629,1715863836488,-500.0,0.00010999,2]
[327156630,1715863836499,-500.0,0.00010999,2]
[327156631,1715863836511,-500.0,0.00010999,2]
[327156632,1715863836521,-500.0,0.00010999,2]
[327156633,1715863836531,-500.0,0.00010999,2]
[327156634,1715863836541,-500.0,0.00010999,2]
[327156635,1715863836552,-500.0,0.00010999,2]
[327156636,1715863836563,-500.0,0.00010999,2]
[327156637,1715863836573,-500.0,0.00010999,2]
[327156638,1715863836583,-500.0,0.00010999,2]
[327156639,1715863836594,-500.0,0.00010999,2]
[327156640,1715863836604,-558.12257648,0.00010999,2]
[327156641,1715863836614,-500.0,0.00010999,2]
[327156642,1715863836624,-187.16,0.00010999,2]
[327156643,1715863836635,-500.0,0.00010999,2]
[327156644,1715863836646,-500.0,0.00010999,2]
[327156645,1715863836657,-494026.84497627,0.00011,5]
[327156646,1715863837022,-2167.44388086,0.00011,5]
[327156647,1715863837037,-305.02084822,0.00011,5]
[327156648,1715863837054,-756.27288357,0.00011,5]
[327156649,1715863837069,-6633.5603512,0.00011,5]
[327156663,1715863837764,-500.0,0.00010999,2]
[327156664,1715863837775,-500.0,0.00010999,2]
[327156665,1715863837787,-172.9529701,0.00010999,2]
[327156666,1715863837798,-500.0,0.00010999,2]
[327156667,1715863837808,-500.0,0.00010999,2]
[327156668,1715863837820,-3943.58072329,0.00011,5]
[327156669,1715863838130,-300.11965555,0.00011,5]
[327156670,1715863838144,-1369.29431586,0.00011,5]
[327156671,1715863838201,-66298.99999999,0.00011,5]
[327156672,1715863838274,-92899.04937755,0.00011,5]
[327156673,1715863838287,-1000.0,0.00011,2]
[327156674,1715863838299,-500.0,0.0001102,2]
[327156675,1715863838310,-500.0,0.0001102,2]
[327156676,1715863838321,-474.03,0.0001102,2]